[Event "Late-Titled-Tuesday-Blitz-January-16-2024"]
[Site "Chess.com"]
[Date "2024.01.16"]
[Round "6"]
[White "BilodeauA"]
[Black "IMRosen"]
[Result "1-0"]
[WhiteElo "2911"]
[BlackElo "2682"]
[TimeControl "180+1"]
[EndTime "15:02:45 PST"]
[Termination "BilodeauA won by checkmate"]

1. e4 {[%clk 0:03:00.9]} 1... c5 {[%clk 0:03:00.4]} 2. Nf3 {[%clk 0:03:01.4]}
2... e6 {[%clk 0:02:59.3]} 3. d4 {[%clk 0:03:02]} 3... cxd4 {[%clk 0:03:00.2]}
4. Nxd4 {[%clk 0:03:02.8]} 4... Nc6 {[%clk 0:03:00.9]} 5. Nc3 {[%clk 0:03:03.3]}
5... Qc7 {[%clk 0:03:01.6]} 6. h3 {[%clk 0:03:01.8]} 6... a6 {[%clk 0:03:01.1]}
7. Nxc6 {[%clk 0:03:02]} 7... bxc6 {[%clk 0:03:01.3]} 8. Bd3 {[%clk 0:03:02.7]}
8... d5 {[%clk 0:03:01.9]} 9. O-O {[%clk 0:03:03.1]} 9... Nf6 {[%clk 0:03:02.6]}
10. Qe2 {[%clk 0:03:02.3]} 10... Be7 {[%clk 0:03:03]} 11. Bg5 {[%clk 0:03:02.5]}
11... O-O {[%clk 0:02:40.5]} 12. Rad1 {[%clk 0:02:44.7]} 12... Re8 {[%clk
0:02:37.3]} 13. Rfe1 {[%clk 0:02:29]} 13... Bb7 {[%clk 0:02:36.3]} 14. e5 {[%clk
0:02:28]} 14... Nd7 {[%clk 0:00:58.5]} 15. Bxe7 {[%clk 0:02:25.1]} 15... Rxe7
{[%clk 0:00:59.4]} 16. Qh5 {[%clk 0:02:25.4]} 16... Nf8 {[%clk 0:00:57.7]} 17.
Ne2 {[%clk 0:02:25]} 17... c5 {[%clk 0:00:55.2]} 18. c3 {[%clk 0:02:22.6]} 18...
a5 {[%clk 0:00:51.3]} 19. Ng3 {[%clk 0:02:16.7]} 19... Ba6 {[%clk 0:00:43.8]}
20. Bb1 {[%clk 0:02:15.9]} 20... Rb8 {[%clk 0:00:44.3]} 21. Rd2 {[%clk
0:02:16.1]} 21... a4 {[%clk 0:00:42.6]} 22. Qh4 {[%clk 0:02:15.5]} 22... Qd8
{[%clk 0:00:38.1]} 23. Qxa4 {[%clk 0:02:12.1]} 23... Ra7 {[%clk 0:00:32.9]} 24.
Qg4 {[%clk 0:02:08]} 24... Ng6 {[%clk 0:00:29.5]} 25. f4 {[%clk 0:01:54.1]}
25... Bc8 {[%clk 0:00:16.5]} 26. Kh2 {[%clk 0:01:52.5]} 26... Ra4 {[%clk
0:00:14.1]} 27. Rf2 {[%clk 0:01:41.5]} 27... Nxe5 {[%clk 0:00:10]} 28. Rxe5
{[%clk 0:01:38.7]} 28... Qc7 {[%clk 0:00:06.6]} 29. b4 {[%clk 0:01:20.9]} 29...
cxb4 {[%clk 0:00:06.2]} 30. Nh5 {[%clk 0:01:18.9]} 30... f5 {[%clk 0:00:05.2]}
31. Bxf5 {[%clk 0:01:14.2]} 31... bxc3 {[%clk 0:00:03.9]} 32. Bxh7+ {[%clk
0:01:10.9]} 32... Kxh7 {[%clk 0:00:03]} 33. Nf6+ {[%clk 0:01:11.4]} 33... gxf6
{[%clk 0:00:01.2]} 34. Rh5# {[%clk 0:01:11.7]} 1-0

[Event "Late-Titled-Tuesday-Blitz-January-16-2024"]
[Site "Chess.com"]
[Date "2024.01.16"]
[Round "6"]
[White "AmanteDeMoi"]
[Black "Yaacovn"]
[Result "0-1"]
[WhiteElo "2588"]
[BlackElo "2899"]
[TimeControl "180+1"]
[EndTime "15:02:48 PST"]
[Termination "Yaacovn won on time"]

1. Nf3 {[%clk 0:02:54.7]} 1... Nf6 {[%clk 0:02:59]} 2. b3 {[%clk 0:02:54.4]}
2... d5 {[%clk 0:02:59.4]} 3. Bb2 {[%clk 0:02:54.2]} 3... c6 {[%clk 0:03:00]} 4.
e3 {[%clk 0:02:54.1]} 4... Bg4 {[%clk 0:03:00.1]} 5. Be2 {[%clk 0:02:54.3]} 5...
Nbd7 {[%clk 0:03:00.2]} 6. O-O {[%clk 0:02:54]} 6... Bxf3 {[%clk 0:03:00.2]} 7.
Bxf3 {[%clk 0:02:53.6]} 7... g6 {[%clk 0:03:00.8]} 8. c4 {[%clk 0:02:51.5]} 8...
e6 {[%clk 0:02:57.9]} 9. Qc2 {[%clk 0:02:37]} 9... Bg7 {[%clk 0:02:57.6]} 10. d4
{[%clk 0:02:28.1]} 10... O-O {[%clk 0:02:57.2]} 11. Nd2 {[%clk 0:02:24.9]} 11...
Re8 {[%clk 0:02:56.6]} 12. Rad1 {[%clk 0:02:21]} 12... Qe7 {[%clk 0:02:56.1]}
13. e4 {[%clk 0:02:19.1]} 13... dxe4 {[%clk 0:02:55.3]} 14. Nxe4 {[%clk
0:02:19.5]} 14... Nxe4 {[%clk 0:02:55]} 15. Qxe4 {[%clk 0:02:19.3]} 15... Rad8
{[%clk 0:02:54.6]} 16. Rfe1 {[%clk 0:02:16.9]} 16... Qb4 {[%clk 0:02:46.6]} 17.
Qc2 {[%clk 0:02:01.8]} 17... a6 {[%clk 0:02:38.2]} 18. Bc3 {[%clk 0:02:00.9]}
18... Qd6 {[%clk 0:02:34.3]} 19. h4 {[%clk 0:01:57.7]} 19... Qf4 {[%clk
0:02:30.1]} 20. Re4 {[%clk 0:01:57.2]} 20... Qc7 {[%clk 0:02:28.5]} 21. h5
{[%clk 0:01:54.6]} 21... Nf6 {[%clk 0:02:25.6]} 22. Ree1 {[%clk 0:01:47.4]}
22... g5 {[%clk 0:02:20.8]} 23. Qe2 {[%clk 0:01:42]} 23... h6 {[%clk 0:02:18.5]}
24. g3 {[%clk 0:01:33.4]} 24... Rd7 {[%clk 0:02:16.8]} 25. Qe3 {[%clk
0:01:15.5]} 25... Red8 {[%clk 0:02:15]} 26. Rd3 {[%clk 0:01:11.8]} 26... Ne8
{[%clk 0:02:09.8]} 27. Red1 {[%clk 0:01:11.6]} 27... Nd6 {[%clk 0:02:09.6]} 28.
Qe1 {[%clk 0:01:11.2]} 28... Nf5 {[%clk 0:02:06.7]} 29. Qd2 {[%clk 0:00:41.3]}
29... Bxd4 {[%clk 0:01:58.3]} 30. g4 {[%clk 0:00:08]} 30... Qg3+ {[%clk
0:01:22.6]} 31. Kf1 {[%clk 0:00:07.1]} 31... Bxf2 {[%clk 0:01:09.5]} 0-1

[Event "Late-Titled-Tuesday-Blitz-January-16-2024"]
[Site "Chess.com"]
[Date "2024.01.16"]
[Round "6"]
[White "2346PL"]
[Black "glebus008"]
[Result "0-1"]
[WhiteElo "2512"]
[BlackElo "2333"]
[TimeControl "180+1"]
[EndTime "15:02:48 PST"]
[Termination "glebus008 won by checkmate"]

1. d4 {[%clk 0:02:59.5]} 1... d5 {[%clk 0:02:59]} 2. Nf3 {[%clk 0:02:59.1]} 2...
Nf6 {[%clk 0:02:58.7]} 3. c3 {[%clk 0:02:59.7]} 3... c5 {[%clk 0:02:57.6]} 4. e3
{[%clk 0:02:57.5]} 4... cxd4 {[%clk 0:02:49.4]} 5. exd4 {[%clk 0:02:57.1]} 5...
Nc6 {[%clk 0:02:49.2]} 6. Bd3 {[%clk 0:02:56.6]} 6... Bg4 {[%clk 0:02:48.7]} 7.
h3 {[%clk 0:02:55.9]} 7... Bh5 {[%clk 0:02:48.4]} 8. O-O {[%clk 0:02:56]} 8...
e6 {[%clk 0:02:48.3]} 9. Bf4 {[%clk 0:02:56.3]} 9... Bd6 {[%clk 0:02:48.3]} 10.
Bxd6 {[%clk 0:02:55]} 10... Qxd6 {[%clk 0:02:48.2]} 11. Re1 {[%clk 0:02:55.5]}
11... O-O {[%clk 0:02:47.1]} 12. Nbd2 {[%clk 0:02:55.1]} 12... Rab8 {[%clk
0:02:42.4]} 13. a4 {[%clk 0:02:52.9]} 13... Qc7 {[%clk 0:02:35.1]} 14. Qb3
{[%clk 0:02:52.1]} 14... Bg6 {[%clk 0:02:28.5]} 15. Bf1 {[%clk 0:02:48.8]} 15...
Rfc8 {[%clk 0:02:27.5]} 16. Ne5 {[%clk 0:02:44.4]} 16... Nxe5 {[%clk 0:02:25.6]}
17. Rxe5 {[%clk 0:02:42.7]} 17... Ne4 {[%clk 0:02:20.3]} 18. Nxe4 {[%clk
0:02:39.7]} 18... Bxe4 {[%clk 0:02:20]} 19. f3 {[%clk 0:02:39.7]} 19... Bg6
{[%clk 0:02:05]} 20. Qd1 {[%clk 0:02:38.9]} 20... a5 {[%clk 0:01:54.2]} 21. h4
{[%clk 0:02:38.3]} 21... h5 {[%clk 0:01:42.1]} 22. Bd3 {[%clk 0:02:38]} 22...
Bxd3 {[%clk 0:01:40.5]} 23. Qxd3 {[%clk 0:02:37.9]} 23... g6 {[%clk 0:01:36]}
24. f4 {[%clk 0:02:35.5]} 24... Qc4 {[%clk 0:01:35.6]} 25. Qd2 {[%clk
0:02:27.4]} 25... b5 {[%clk 0:01:34.8]} 26. axb5 {[%clk 0:02:19.7]} 26... Rxb5
{[%clk 0:01:34.6]} 27. Rae1 {[%clk 0:02:16.8]} 27... Rcb8 {[%clk 0:01:31.4]} 28.
R1e2 {[%clk 0:02:17.1]} 28... Qa2 {[%clk 0:01:28.4]} 29. f5 {[%clk 0:02:17]}
29... Rxb2 {[%clk 0:01:16.4]} 30. Qf4 {[%clk 0:01:45.8]} 30... Rxe2 {[%clk
0:01:08.6]} 31. Rxe2 {[%clk 0:01:44.4]} 31... Rb1+ {[%clk 0:01:04.3]} 32. Kf2
{[%clk 0:01:44]} 32... Rb2 {[%clk 0:01:00.3]} 33. Rxb2 {[%clk 0:01:43.2]} 33...
Qxb2+ {[%clk 0:01:00]} 34. Kg1 {[%clk 0:01:44.1]} 34... Qb1+ {[%clk 0:00:58.5]}
35. Kh2 {[%clk 0:01:43.2]} 35... Qxf5 {[%clk 0:00:58.9]} 36. Qc7 {[%clk
0:01:37.1]} 36... a4 {[%clk 0:00:52.7]} 37. Qa7 {[%clk 0:01:34]} 37... Qf4+
{[%clk 0:00:48.8]} 38. g3 {[%clk 0:01:33.2]} 38... Qf2+ {[%clk 0:00:44.6]} 39.
Kh3 {[%clk 0:01:33.3]} 39... Qg1 {[%clk 0:00:42.8]} 40. Qb8+ {[%clk 0:01:03.4]}
40... Kh7 {[%clk 0:00:41.4]} 41. g4 {[%clk 0:01:01.1]} 41... hxg4# {[%clk
0:00:34.7]} 0-1

[Event "Late-Titled-Tuesday-Blitz-January-16-2024"]
[Site "Chess.com"]
[Date "2024.01.16"]
[Round "6"]
[White "Antipov_Mikhail_Al"]
[Black "GMAkobianSTL"]
[Result "1-0"]
[WhiteElo "2915"]
[BlackElo "2704"]
[TimeControl "180+1"]
[EndTime "15:02:55 PST"]
[Termination "Antipov_Mikhail_Al won by resignation"]

1. e4 {[%clk 0:03:00.8]} 1... d6 {[%clk 0:02:58.4]} 2. d4 {[%clk 0:02:59.8]}
2... Nf6 {[%clk 0:02:56.6]} 3. Nc3 {[%clk 0:02:59.3]} 3... c6 {[%clk 0:02:55.6]}
4. Nf3 {[%clk 0:02:50.8]} 4... Bg4 {[%clk 0:02:54]} 5. Be3 {[%clk 0:02:47.9]}
5... e6 {[%clk 0:02:50.8]} 6. Be2 {[%clk 0:02:41.9]} 6... d5 {[%clk 0:02:50.7]}
7. exd5 {[%clk 0:02:37.2]} 7... cxd5 {[%clk 0:02:50.4]} 8. O-O {[%clk
0:02:33.1]} 8... Nc6 {[%clk 0:02:49.7]} 9. h3 {[%clk 0:02:28.1]} 9... Bh5 {[%clk
0:02:49]} 10. Ne5 {[%clk 0:02:28.1]} 10... Bxe2 {[%clk 0:02:48.3]} 11. Qxe2
{[%clk 0:02:29]} 11... Bd6 {[%clk 0:02:42]} 12. f4 {[%clk 0:02:21.5]} 12... O-O
{[%clk 0:02:41.3]} 13. Qd3 {[%clk 0:02:09.1]} 13... Rc8 {[%clk 0:02:37.8]} 14.
a3 {[%clk 0:02:08.1]} 14... Ne7 {[%clk 0:02:29.3]} 15. g4 {[%clk 0:01:53.3]}
15... a6 {[%clk 0:02:26.4]} 16. Rae1 {[%clk 0:01:45.7]} 16... Qc7 {[%clk
0:02:17.8]} 17. Re2 {[%clk 0:01:35.3]} 17... Rfd8 {[%clk 0:02:13]} 18. Bf2
{[%clk 0:01:30.4]} 18... Ng6 {[%clk 0:02:10.6]} 19. Qf3 {[%clk 0:01:19.2]} 19...
b5 {[%clk 0:01:51.3]} 20. h4 {[%clk 0:01:18.2]} 20... Bxa3 {[%clk 0:01:27.7]}
21. h5 {[%clk 0:01:17]} 21... Ne7 {[%clk 0:00:54.3]} 22. h6 {[%clk 0:01:16.9]}
22... Bxb2 {[%clk 0:00:31.2]} 23. Nd1 {[%clk 0:01:14.7]} 23... Bc1 {[%clk
0:00:29.8]} 24. hxg7 {[%clk 0:01:13.1]} 24... Ne4 {[%clk 0:00:29.3]} 25. Bh4
{[%clk 0:01:06.7]} 25... f6 {[%clk 0:00:27.4]} 26. Nd3 {[%clk 0:01:04.4]} 26...
Ba3 {[%clk 0:00:18.9]} 27. f5 {[%clk 0:01:00.4]} 27... exf5 {[%clk 0:00:17.5]}
28. gxf5 {[%clk 0:01:01.3]} 28... Bd6 {[%clk 0:00:17.1]} 29. Ne3 {[%clk
0:00:58.7]} 29... Kxg7 {[%clk 0:00:14.5]} 30. Rg2+ {[%clk 0:00:56.8]} 30... Kh8
{[%clk 0:00:12.9]} 31. Qxe4 {[%clk 0:00:57.2]} 31... Ng6 {[%clk 0:00:05.5]} 32.
Bxf6+ {[%clk 0:00:56.5]} 1-0

[Event "Late-Titled-Tuesday-Blitz-January-16-2024"]
[Site "Chess.com"]
[Date "2024.01.16"]
[Round "6"]
[White "Godzillator"]
[Black "agvega14"]
[Result "1-0"]
[WhiteElo "2339"]
[BlackElo "2134"]
[TimeControl "180+1"]
[EndTime "15:02:55 PST"]
[Termination "Godzillator won by resignation"]

1. d4 {[%clk 0:03:00.9]} 1... d5 {[%clk 0:02:56]} 2. Nf3 {[%clk 0:03:01.8]} 2...
Nf6 {[%clk 0:02:55.7]} 3. Bg5 {[%clk 0:03:00.7]} 3... Ne4 {[%clk 0:02:54.3]} 4.
Bf4 {[%clk 0:03:00.2]} 4... c5 {[%clk 0:02:53.7]} 5. dxc5 {[%clk 0:02:56.8]}
5... Nc6 {[%clk 0:02:52.5]} 6. e3 {[%clk 0:02:56.3]} 6... e6 {[%clk 0:02:52.6]}
7. a3 {[%clk 0:02:55.8]} 7... Nxc5 {[%clk 0:02:51]} 8. Be2 {[%clk 0:02:53.7]}
8... Be7 {[%clk 0:02:50]} 9. O-O {[%clk 0:02:53.6]} 9... O-O {[%clk 0:02:50.1]}
10. b4 {[%clk 0:02:50.7]} 10... Ne4 {[%clk 0:02:49.4]} 11. c4 {[%clk 0:02:47.6]}
11... Bf6 {[%clk 0:02:48.6]} 12. Ra2 {[%clk 0:02:46.5]} 12... a6 {[%clk
0:02:33.4]} 13. cxd5 {[%clk 0:02:45.7]} 13... exd5 {[%clk 0:02:33.3]} 14. Nfd2
{[%clk 0:02:31.4]} 14... Be6 {[%clk 0:02:27.3]} 15. Nxe4 {[%clk 0:02:30.4]}
15... dxe4 {[%clk 0:02:27.7]} 16. Rd2 {[%clk 0:02:30.5]} 16... Qb6 {[%clk
0:02:24.3]} 17. Qc2 {[%clk 0:02:19.5]} 17... Rac8 {[%clk 0:02:20.1]} 18. Qxe4
{[%clk 0:02:17.5]} 18... Rfe8 {[%clk 0:02:11.7]} 19. Qf3 {[%clk 0:01:23.9]}
19... a5 {[%clk 0:01:50.4]} 20. b5 {[%clk 0:01:21.3]} 20... Ne5 {[%clk
0:01:35.4]} 21. Qg3 {[%clk 0:01:16.2]} 21... Nc4 {[%clk 0:01:26.7]} 22. Rc2
{[%clk 0:01:03.1]} 22... Qxb5 {[%clk 0:01:10.5]} 23. Rfc1 {[%clk 0:01:03]} 23...
Qa6 {[%clk 0:00:56.9]} 24. a4 {[%clk 0:01:00.8]} 24... b5 {[%clk 0:00:36.8]} 25.
axb5 {[%clk 0:00:59.8]} 25... Qxb5 {[%clk 0:00:37.1]} 26. Na3 {[%clk 0:00:56.3]}
26... Nxa3 {[%clk 0:00:36.1]} 27. Bxb5 {[%clk 0:00:56.1]} 27... Nxc2 {[%clk
0:00:35.9]} 28. Bxe8 {[%clk 0:00:55.7]} 28... Bb2 {[%clk 0:00:26.6]} 29. Be5
{[%clk 0:00:55.6]} 29... Bxe5 {[%clk 0:00:25.9]} 30. Qxe5 {[%clk 0:00:55.3]}
30... Rxe8 {[%clk 0:00:25.6]} 31. Rxc2 {[%clk 0:00:55.1]} 31... Rd8 {[%clk
0:00:25]} 32. h4 {[%clk 0:00:46.7]} 32... h6 {[%clk 0:00:24.4]} 33. Qxa5 {[%clk
0:00:46.5]} 33... Rd1+ {[%clk 0:00:23.4]} 34. Kh2 {[%clk 0:00:45.5]} 34... Rd8
{[%clk 0:00:23.8]} 35. Qxd8+ {[%clk 0:00:44.5]} 1-0

[Event "Late-Titled-Tuesday-Blitz-January-16-2024"]
[Site "Chess.com"]
[Date "2024.01.16"]
[Round "6"]
[White "dianamirza"]
[Black "ToddBryant"]
[Result "0-1"]
[WhiteElo "2005"]
[BlackElo "2307"]
[TimeControl "180+1"]
[EndTime "15:02:59 PST"]
[Termination "ToddBryant won by resignation"]

1. e4 {[%clk 0:02:53.8]} 1... c5 {[%clk 0:02:59.3]} 2. Nf3 {[%clk 0:02:48.7]}
2... d6 {[%clk 0:02:59.5]} 3. d4 {[%clk 0:02:48.9]} 3... cxd4 {[%clk 0:03:00.4]}
4. Nxd4 {[%clk 0:02:49.6]} 4... Nf6 {[%clk 0:02:58.7]} 5. Nc3 {[%clk 0:02:49.6]}
5... g6 {[%clk 0:02:59.1]} 6. f3 {[%clk 0:02:41.8]} 6... Bg7 {[%clk 0:02:59]} 7.
Be3 {[%clk 0:02:42.3]} 7... O-O {[%clk 0:02:59.4]} 8. Qd2 {[%clk 0:02:42.8]}
8... Nc6 {[%clk 0:02:59.8]} 9. O-O-O {[%clk 0:02:32.4]} 9... Bd7 {[%clk
0:03:00.1]} 10. g4 {[%clk 0:02:32.3]} 10... Rc8 {[%clk 0:03:00.1]} 11. h4 {[%clk
0:02:31.7]} 11... Ne5 {[%clk 0:03:00.3]} 12. h5 {[%clk 0:02:27]} 12... Qa5
{[%clk 0:03:00.7]} 13. Kb1 {[%clk 0:02:19.3]} 13... Nxf3 {[%clk 0:02:59.9]} 14.
Nxf3 {[%clk 0:02:07.2]} 14... Rxc3 {[%clk 0:03:00.2]} 15. Qxc3 {[%clk
0:02:03.8]} 15... Qxc3 {[%clk 0:03:00.9]} 16. bxc3 {[%clk 0:02:04.4]} 16... Bxg4
{[%clk 0:03:01.5]} 17. h6 {[%clk 0:01:19.6]} 17... Bh8 {[%clk 0:03:01.3]} 18.
Bg2 {[%clk 0:01:14.4]} 18... Nxe4 {[%clk 0:03:01]} 19. Rd3 {[%clk 0:01:03.9]}
19... Nxc3+ {[%clk 0:02:15.9]} 20. Kc1 {[%clk 0:00:56.2]} 20... Nxa2+ {[%clk
0:02:04.4]} 21. Kd2 {[%clk 0:00:46.8]} 21... Nb4 {[%clk 0:02:03.4]} 22. Rb3
{[%clk 0:00:42.5]} 22... a5 {[%clk 0:02:02.6]} 23. Nd4 {[%clk 0:00:34.3]} 23...
Rc8 {[%clk 0:01:42.6]} 24. Bxb7 {[%clk 0:00:29.8]} 24... Rc7 {[%clk 0:01:42.3]}
25. Bf3 {[%clk 0:00:19.2]} 25... Bxd4 {[%clk 0:01:33.6]} 26. Bxg4 {[%clk
0:00:18.6]} 26... Rxc2+ {[%clk 0:01:28.6]} 27. Kd1 {[%clk 0:00:18.8]} 27... Bxe3
{[%clk 0:01:08.5]} 28. Rxe3 {[%clk 0:00:18.2]} 28... e5 {[%clk 0:01:08]} 29. Rb3
{[%clk 0:00:16.5]} 29... Ra2 {[%clk 0:01:01.6]} 30. Be2 {[%clk 0:00:11.3]} 30...
Ra1+ {[%clk 0:00:58.8]} 31. Kd2 {[%clk 0:00:09.9]} 31... Rxh1 {[%clk 0:00:57.9]}
32. Rc3 {[%clk 0:00:10.8]} 32... Rxh6 {[%clk 0:00:54.7]} 33. Rc8+ {[%clk
0:00:09.4]} 33... Kg7 {[%clk 0:00:55]} 34. Bc4 {[%clk 0:00:09.5]} 34... d5
{[%clk 0:00:52.2]} 35. Rc7 {[%clk 0:00:10.4]} 0-1

[Event "Late-Titled-Tuesday-Blitz-January-16-2024"]
[Site "Chess.com"]
[Date "2024.01.16"]
[Round "6"]
[White "Zhigalko_Sergei"]
[Black "BardArtem"]
[Result "1-0"]
[WhiteElo "2976"]
[BlackElo "2810"]
[TimeControl "180+1"]
[EndTime "15:03:00 PST"]
[Termination "Zhigalko_Sergei won by resignation"]

1. e4 {[%clk 0:03:00.9]} 1... e5 {[%clk 0:02:56]} 2. Nf3 {[%clk 0:03:00.8]} 2...
Nc6 {[%clk 0:02:56.5]} 3. Bc4 {[%clk 0:03:00.3]} 3... Bc5 {[%clk 0:02:55.9]} 4.
O-O {[%clk 0:02:59.5]} 4... Nf6 {[%clk 0:02:56.2]} 5. d3 {[%clk 0:03:00]} 5...
d6 {[%clk 0:02:56.5]} 6. c3 {[%clk 0:02:59.8]} 6... O-O {[%clk 0:02:56.5]} 7.
Nbd2 {[%clk 0:02:59.7]} 7... a6 {[%clk 0:02:55.7]} 8. Bb3 {[%clk 0:02:59.9]}
8... Ba7 {[%clk 0:02:55.9]} 9. h3 {[%clk 0:03:00.1]} 9... Be6 {[%clk 0:02:55.8]}
10. Re1 {[%clk 0:02:56.9]} 10... Re8 {[%clk 0:02:52.2]} 11. Nf1 {[%clk
0:02:55.7]} 11... h6 {[%clk 0:02:49.5]} 12. Be3 {[%clk 0:02:44.1]} 12... Bxe3
{[%clk 0:02:41.1]} 13. Nxe3 {[%clk 0:02:45]} 13... d5 {[%clk 0:02:41.4]} 14.
exd5 {[%clk 0:02:39.6]} 14... Nxd5 {[%clk 0:02:42.3]} 15. Nc4 {[%clk 0:02:32.6]}
15... f6 {[%clk 0:01:58.1]} 16. d4 {[%clk 0:02:32.3]} 16... b5 {[%clk
0:01:49.6]} 17. Ne3 {[%clk 0:02:16.5]} 17... Nxe3 {[%clk 0:01:46.4]} 18. Rxe3
{[%clk 0:02:17.4]} 18... Bxb3 {[%clk 0:01:25.8]} 19. Qxb3+ {[%clk 0:02:18.3]}
19... Kh8 {[%clk 0:01:26.1]} 20. Rae1 {[%clk 0:02:13.8]} 20... Na5 {[%clk
0:01:17.6]} 21. Qc2 {[%clk 0:02:07.8]} 21... Nc4 {[%clk 0:01:17.6]} 22. R3e2
{[%clk 0:02:07.7]} 22... Qd5 {[%clk 0:01:05.3]} 23. b3 {[%clk 0:01:58.4]} 23...
Nd6 {[%clk 0:00:38.2]} 24. dxe5 {[%clk 0:01:58.3]} 24... fxe5 {[%clk 0:00:39.1]}
25. Nxe5 {[%clk 0:01:53.6]} 25... Qc5 {[%clk 0:00:19.8]} 26. Ng6+ {[%clk
0:01:35]} 26... Kg8 {[%clk 0:00:19.6]} 27. Ne7+ {[%clk 0:01:35.9]} 27... Kh8
{[%clk 0:00:17.3]} 28. Re5 {[%clk 0:01:36.3]} 28... Qb6 {[%clk 0:00:09.9]} 29.
Ng6+ {[%clk 0:01:36.7]} 29... Kg8 {[%clk 0:00:09.8]} 30. Ne7+ {[%clk 0:01:37.6]}
30... Kh8 {[%clk 0:00:10.2]} 31. Qg6 {[%clk 0:01:30.1]} 31... Rf8 {[%clk
0:00:09.9]} 32. Qg3 {[%clk 0:01:07.3]} 32... Rf6 {[%clk 0:00:07]} 33. Nd5 {[%clk
0:01:07.3]} 33... Nf5 {[%clk 0:00:01.9]} 34. Nxb6 {[%clk 0:01:04.5]} 34... Nxg3
{[%clk 0:00:01.8]} 35. Nxa8 {[%clk 0:01:04.9]} 1-0

[Event "Late-Titled-Tuesday-Blitz-January-16-2024"]
[Site "Chess.com"]
[Date "2024.01.16"]
[Round "6"]
[White "Hikaru"]
[Black "TigrVShlyape"]
[Result "1-0"]
[WhiteElo "3234"]
[BlackElo "2945"]
[TimeControl "180+1"]
[EndTime "15:03:05 PST"]
[Termination "Hikaru won on time"]

1. e4 {[%clk 0:03:00.9]} 1... e5 {[%clk 0:02:58.9]} 2. Bc4 {[%clk 0:03:00.7]}
2... Nf6 {[%clk 0:02:56.4]} 3. d3 {[%clk 0:03:00.9]} 3... c6 {[%clk 0:02:52.7]}
4. Nf3 {[%clk 0:03:00.8]} 4... d5 {[%clk 0:02:52.5]} 5. Bb3 {[%clk 0:03:00.7]}
5... Bb4+ {[%clk 0:02:49.8]} 6. Bd2 {[%clk 0:03:00.9]} 6... Bxd2+ {[%clk
0:02:46.8]} 7. Qxd2 {[%clk 0:03:01.8]} 7... dxe4 {[%clk 0:02:41.4]} 8. Nxe5
{[%clk 0:03:00.4]} 8... O-O {[%clk 0:02:40.9]} 9. Nxf7 {[%clk 0:03:00.2]} 9...
Rxf7 {[%clk 0:02:36.9]} 10. dxe4 {[%clk 0:03:00.5]} 10... Qe7 {[%clk 0:02:29.1]}
11. Bxf7+ {[%clk 0:03:00.2]} 11... Kxf7 {[%clk 0:02:26.3]} 12. f3 {[%clk
0:03:00.4]} 12... Be6 {[%clk 0:02:13.8]} 13. Nc3 {[%clk 0:03:00.3]} 13... Nbd7
{[%clk 0:01:55.2]} 14. O-O {[%clk 0:03:00.2]} 14... Nb6 {[%clk 0:01:52.1]} 15.
b3 {[%clk 0:02:56]} 15... Qc5+ {[%clk 0:01:46.2]} 16. Kh1 {[%clk 0:02:56.1]}
16... Kg8 {[%clk 0:01:44.9]} 17. Ne2 {[%clk 0:02:43.2]} 17... Nbd7 {[%clk
0:01:40.1]} 18. Rad1 {[%clk 0:02:41.1]} 18... Re8 {[%clk 0:01:37.8]} 19. Nf4
{[%clk 0:02:34.4]} 19... Bf7 {[%clk 0:01:36.3]} 20. Nd3 {[%clk 0:02:34.8]} 20...
Qd4 {[%clk 0:01:28.3]} 21. Rfe1 {[%clk 0:02:32.6]} 21... h6 {[%clk 0:01:25.2]}
22. c3 {[%clk 0:02:31.3]} 22... Qb6 {[%clk 0:01:23]} 23. e5 {[%clk 0:02:26.9]}
23... Nd5 {[%clk 0:01:20.8]} 24. c4 {[%clk 0:02:27.4]} 24... Nc7 {[%clk
0:01:19.3]} 25. f4 {[%clk 0:02:26.6]} 25... Bh5 {[%clk 0:01:16.9]} 26. Rc1
{[%clk 0:02:26.3]} 26... Bg6 {[%clk 0:01:10]} 27. Nf2 {[%clk 0:01:48.5]} 27...
Nc5 {[%clk 0:00:42.8]} 28. g4 {[%clk 0:01:48.3]} 28... Bf7 {[%clk 0:00:15.2]}
29. f5 {[%clk 0:01:48.4]} 29... N7a6 {[%clk 0:00:15.2]} 30. e6 {[%clk
0:01:45.8]} 30... Nxe6 {[%clk 0:00:12.1]} 31. fxe6 {[%clk 0:01:46.7]} 31... Rxe6
{[%clk 0:00:11.1]} 32. Rxe6 {[%clk 0:01:40.9]} 32... Bxe6 {[%clk 0:00:10.6]} 33.
Re1 {[%clk 0:01:41.6]} 33... Bf7 {[%clk 0:00:06.5]} 34. Kg2 {[%clk 0:01:40.8]}
34... Qc7 {[%clk 0:00:06.2]} 35. Qd4 {[%clk 0:01:39.8]} 35... b6 {[%clk
0:00:05.4]} 36. Rd1 {[%clk 0:01:37.2]} 36... Kh7 {[%clk 0:00:04.8]} 37. Nd3
{[%clk 0:01:17.1]} 37... c5 {[%clk 0:00:03]} 38. Qe3 {[%clk 0:01:16]} 38... Bg6
{[%clk 0:00:02.6]} 39. Nf4 {[%clk 0:01:12.9]} 39... Nb4 {[%clk 0:00:01.6]} 40.
Nxg6 {[%clk 0:01:12.1]} 40... Qc6+ {[%clk 0:00:02]} 41. Qf3 {[%clk 0:01:09.2]}
41... Qxg6 {[%clk 0:00:02.6]} 42. Qf5 {[%clk 0:01:09.5]} 42... Nc6 {[%clk
0:00:01.5]} 43. Qxg6+ {[%clk 0:01:09.6]} 1-0

[Event "Late-Titled-Tuesday-Blitz-January-16-2024"]
[Site "Chess.com"]
[Date "2024.01.16"]
[Round "6"]
[White "vladoboch"]
[Black "jinxy2009"]
[Result "1-0"]
[WhiteElo "2412"]
[BlackElo "2243"]
[TimeControl "180+1"]
[EndTime "15:03:07 PST"]
[Termination "vladoboch won by resignation"]

1. e4 {[%clk 0:03:00.9]} 1... c6 {[%clk 0:02:53.3]} 2. d4 {[%clk 0:03:00.4]}
2... d5 {[%clk 0:02:54.2]} 3. e5 {[%clk 0:03:00.8]} 3... Bf5 {[%clk 0:02:53.8]}
4. h4 {[%clk 0:03:01.4]} 4... h5 {[%clk 0:02:52.1]} 5. c4 {[%clk 0:03:01.6]}
5... e6 {[%clk 0:02:50.7]} 6. Nc3 {[%clk 0:03:02.3]} 6... Ne7 {[%clk 0:02:46.8]}
7. Bg5 {[%clk 0:03:01.4]} 7... Nd7 {[%clk 0:02:44.8]} 8. cxd5 {[%clk 0:03:00.8]}
8... exd5 {[%clk 0:02:45.2]} 9. Bd3 {[%clk 0:02:59.8]} 9... Bxd3 {[%clk
0:02:41.3]} 10. Qxd3 {[%clk 0:02:59.5]} 10... Qb6 {[%clk 0:02:34.3]} 11. Nf3
{[%clk 0:02:38.2]} 11... O-O-O {[%clk 0:02:17.5]} 12. O-O {[%clk 0:02:30.5]}
12... Kb8 {[%clk 0:02:13]} 13. b4 {[%clk 0:02:05.5]} 13... Ng6 {[%clk
0:02:00.2]} 14. b5 {[%clk 0:01:43.5]} 14... Be7 {[%clk 0:01:56.3]} 15. a4 {[%clk
0:01:38.5]} 15... Bxg5 {[%clk 0:01:46.5]} 16. a5 {[%clk 0:01:38.2]} 16... Qc7
{[%clk 0:01:44.9]} 17. Nxg5 {[%clk 0:01:38.5]} 17... Nf4 {[%clk 0:01:41.8]} 18.
Qf3 {[%clk 0:01:26.3]} 18... Ne6 {[%clk 0:01:35.4]} 19. Nxe6 {[%clk 0:01:02.2]}
19... fxe6 {[%clk 0:01:32.5]} 20. Rfb1 {[%clk 0:01:03.1]} 20... Ka8 {[%clk
0:01:28]} 21. b6 {[%clk 0:00:58]} 21... Qb8 {[%clk 0:01:26.6]} 22. a6 {[%clk
0:00:54.7]} 22... Nxb6 {[%clk 0:01:13]} 23. Na4 {[%clk 0:00:41.3]} 23... Qc7
{[%clk 0:01:05.3]} 24. axb7+ {[%clk 0:00:33.6]} 24... Kxb7 {[%clk 0:01:02.4]}
25. Nc5+ {[%clk 0:00:33.7]} 25... Kc8 {[%clk 0:00:51.6]} 26. Nxe6 {[%clk
0:00:26.8]} 26... Qe7 {[%clk 0:00:49.8]} 27. Qh3 {[%clk 0:00:22.2]} 27... Kb7
{[%clk 0:00:46.6]} 28. Nc5+ {[%clk 0:00:20.1]} 28... Kb8 {[%clk 0:00:44.2]} 29.
Rxb6+ {[%clk 0:00:14.8]} 29... axb6 {[%clk 0:00:43.3]} 30. Qa3 {[%clk
0:00:15.5]} 1-0